Cogmind - Beta 16.1 @@@ ROGUE MODE // 2026.03.30 @ 21:19:10 Player: KURIIRI Result: Self-destructed Performance ------------- Evolutions (4) 2000 Regions Visited (6) 1200 Robots Destroyed (67) 335 Value Destroyed (1867) 1867 Prototype IDs (3) 60 Alien Tech Used (0) 0 Bonus (800) 800 TOTAL SCORE: 6262 Bonus ------- Registered with UFD 300 Met Optimus in HQ 500 Cogmind --------- Core Integrity 763/850 Matter 300/300 Energy 100/100 System Corruption 9% Temperature Cool (0) Movement Core (50) Location -6/Waste Parts ------- > --- POWER (1) -------- (None) > --- PROPULSION (4) --- (None) > --- UTILITY (8) ------ Power Amplifier Improved Terrain Scanner Hacking Suite > --- WEAPON (2) ------- (None) > --- INVENTORY (5) ---- Improved Particle Charger Scrapoid Pod Plasma Cannon Improved Datajack Peak State ------------ > --- POWER ------------ Fission Core > --- PROPULSION ------- Armored Treads Medium Treads Compact Wheel Compact Wheel > --- UTILITY ---------- Power Amplifier Cooling System Huge Storage Unit Improved Terrain Scanner Improved Particle Charger Cloaking Device Improved Heavy Armor Plating > --- WEAPON ----------- Phase Cannon Phase Cannon > --- INVENTORY -------- Improved Ion Engine Improved Ion Engine Spiked Treads Medium Treads Improved Cryofiber Web Improved Heat Sink Energy Well Advanced Sensor Array IFF Parser Improved Particle Charger Medium Armor Plating Scrapoid Pod Plasma Cannon Plasma Cannon Plasma Cannon Plasma Cannon Phase Cannon Phase Cannon Phase Cannon Heavy Assault Rifle Shock Bomb Launcher Improved Datajack Multitool [Rating: 64] Favorites ----------- Power Improved Ion Engine Engine Improved Ion Engine Power Core Fission Core Propulsion Light Treads Treads Light Treads Leg Aluminum Leg Wheel Subdweller Monowheel Utility High-capacity Storage Unit Device Improved Heat Sink Storage High-capacity Storage Unit Hackware Hacking Suite Protection Scrap Shield Weapon Plasma Cannon Energy Gun Subdweller Laser Energy Cannon Plasma Cannon Ballistic Gun Subdweller Machine Gun Impact Weapon Flail Piercing Weapon Makeshift Spear Build | -11 -10 -10 -8 -8 -6 -6 ------- Run | Yrd Mat Sub Rec Scr Fac Was Slots Evolved 8 | . . . . . 8 . Power . | . . . . . . . Propulsion 2 | . . . . . 2 . Utility 6 | . . . . . 6 . Weapon . | . . . . . . . Parts Attached 53 | 1 6 15 7 4 20 . Power 3 | . . 1 1 . 1 . Engine 2 | . . 1 1 . . . Core 1 | . . . . . 1 . Reactor . | . . . . . . . Propulsion 16 | . 2 4 3 2 5 . Treads 7 | . 1 2 . 2 2 . Leg . | . . . . . . . Wheel 9 | . 1 2 3 . 3 . Hover . | . . . . . . . Flight . | . . . . . . . Utility 15 | 1 1 3 . . 10 . Device 8 | 1 . 1 . . 6 . Storage 2 | . 1 . . . 1 . Processor . | . . . . . . . Hackware 1 | . . . . . 1 . Protection 4 | . . 2 . . 2 . Artifact . | . . . . . . . Weapon 19 | . 3 7 3 2 4 . Energy Gun 6 | . 1 3 2 . . . Energy Cannon 6 | . . . . 2 4 . Ballistic Gun 5 | . 1 3 1 . . . Ballistic Cannon . | . . . . . . . Launcher . | . . . . . . . Special Weapon . | . . . . . . . Impact Weapon 1 | . 1 . . . . . Slashing Weapon . | . . . . . . . Piercing Weapon 1 | . . 1 . . . . Special Melee Weapon . | . . . . . . . Unidentified Prototypes 1 | . . . . . 1 . Parts Lost 9 | . . 1 3 . . 5 Power 1 | . . . 1 . . . Propulsion 4 | . . . 1 . . 3 Utility 3 | . . 1 . . . 2 Weapon 1 | . . . 1 . . . Highest Loss Streak 5 | . . 1 2 . . 5 To Critical Strikes . | . . . . . . . Average Backups 11 | 6 7 5 14 15 18 19 Power . | 1 1 . . 1 1 1 Propulsion 1 | 4 2 . 3 2 1 1 Utility 4 | . 2 2 6 6 5 6 Weapon 2 | 1 1 1 1 3 7 7 Tool/Special . | . . . . . . . Unused Backups 29 | . 3 6 . 4 2 14 Power 4 | . . 3 . . . 1 Propulsion 2 | . . 1 . 1 . . Utility 10 | . 1 2 . 3 1 3 Weapon 10 | . 2 . . . 1 7 Tool/Special 3 | . . . . . . 3 Average Slot Usage (%) 92 | . 100 84 99 100 85 82 Engine 12 | . 14 14 13 14 . . Treads 19 | . 4 22 15 25 15 4 Leg 1 | . 17 . . . . . Wheel 5 | . 5 5 12 2 8 17 Device 10 | . 14 . 14 14 28 26 Storage 8 | . 14 2 14 14 6 4 Protection 4 | . . 11 . . 3 4 Energy Gun 7 | . 14 14 4 . . . Energy Cannon 8 | . . . . 26 13 10 Ballistic Gun 8 | . 13 13 11 . . . Piercing Weapon 1 | . . . 11 . . . Peak Build Rating 64 | 9 12 16 19 23 64 60 Average Rating 19 | 6 10 12 18 21 52 53 On Entrance 20 | 6 9 12 16 19 23 60 Avg Prop Armor Cover (%) 10 | . 11 5 15 14 9 6 Naked Turns . | . . . . . . . Heaviest Build 131 | 11 49 54 54 62 131 131 Greatest Support 96 | 20 20 40 40 40 96 48 Greatest Overweight (x) 7 | . 4 4 2 3 7 3 Average Overweight (x) 1 | . . . 1 1 1 1 Largest Inventory Capacity 25 | 8 20 20 20 20 25 25 Average Capacity 14 | 8 12 7 20 20 22 22 Most Carried 25 | 6 10 14 16 20 25 25 Average Carried 11 | 6 7 5 15 16 19 22 Final Capacity 25 | 8 20 20 20 20 25 5 Final Carried 25 | 6 9 14 16 15 25 5 Class Distribution -------------------- 64% | Mutant 21% | Subdweller-Mutant 14% | Scavenger-Mutant Dominant Class ---------------- Mutant | -10/Materials Subdweller-Mutant | -10/Subcaves Scavenger-Mutant | -8/Recycling Mutant | -8/Scraptown Mutant | -6/Factory Mutant | -6/Waste Resources | -11 -10 -10 -8 -8 -6 -6 ----------- Run | Yrd Mat Sub Rec Scr Fac Was Matter Collected 1119 | 219 152 305 135 40 268 . Remotely . | . . . . . . . Salvage Created 2460 | 101 370 632 646 . 711 . Parts 161 | 4 39 46 26 . 46 . Haulers Intercepted 1 | . . . . . 1 . Recyclers Shooed 2 | . 1 . 1 . . . Parts Field Recycled . | . . . . . . . Retrieved Matter . | . . . . . . . Parts Self-Destructed 16 | . . 16 . . . . Prevented . | . . . . . . . Parts Restored . | . . . . . . . Kills | -11 -10 -10 -8 -8 -6 -6 ------- Run | Yrd Mat Sub Rec Scr Fac Was Combat Hostiles Destroyed 42 | . 12 14 7 . 9 . Melee 4 | . . 1 3 . . . Guns 28 | . 12 12 4 . . . Cannons 8 | . . . . . 8 . Classes Destroyed 12 | 2 4 2 2 . 2 . Worker 6 | . 1 . . . 5 . Builder 4 | . . . . . 4 . Tunneler 1 | 1 . . . . . . Hauler 1 | . . . . . 1 . Recycler 8 | 1 . . 5 . 2 . Watcher 5 | . 3 . . . 2 . Swarmer 15 | . 7 . 2 . 6 . Grunt 7 | . 5 2 . . . . Sentry 4 | . . . 3 . 1 . Programmer 4 | . . . 2 . 2 . Artisan 2 | . . 2 . . . . Subdweller 12 | . . 12 . . . . Best Kill Streak 11 | 1 2 2 4 . 11 . Combat Bots Only 4 | . 2 2 4 . 3 . Max Kills in Single Turn 4 | 1 2 1 1 . 4 . Gunslinging . | . . . . . . . Exploded . | . . . . . . . Melee 1 | . . 1 1 . . . Uniques/NPCs Destroyed . | . . . . . . . Combat | -11 -10 -10 -8 -8 -6 -6 -------- Run | Yrd Mat Sub Rec Scr Fac Was Hostile Shots Fired 222 | . 37 51 37 . 92 5 Missed 64 | . 10 12 10 . 31 1 Hits 158 | . 27 39 27 . 61 4 Melee 4 | . . . . . . 4 Projectile 154 | . 27 39 27 . 61 . AOE 2 | . . . . . 2 . Critical Strikes 6 | . . 1 2 . 1 2 Damage Taken 2696 | . 275 911 393 . 956 161 Core 248 | . 31 83 47 . 55 32 Absorbed by Shields 49 | . . . . . 49 . Regen/Repaired (Parts) 58 | . 58 . . . . . Core Remaining (%) 67 | 100 . . . 35 . . Volleys Fired 163 | 9 33 70 15 . 31 5 Largest 2 | 2 2 2 2 . 2 2 Hottest 175 | 60 85 90 100 . 175 175 Shots Fired 297 | 18 63 127 24 . 58 7 Gun 232 | 18 63 127 24 . . . Cannon 65 | . . . . . 58 7 Launcher . | . . . . . . . Special . | . . . . . . . Kinetic 115 | 9 33 62 11 . . . Thermal 174 | 9 30 65 5 . 58 7 Explosive . | . . . . . . . Electromagnetic 8 | . . . 8 . . . Robot Hit Streak 12 | 9 6 12 8 . 5 3 Robot Miss Streak 6 | 2 6 2 3 . 4 1 Penetration Max . | . . . . . . . Secondary Targets . | . . . . . . . Shots Hit Robots 158 | 10 30 61 28 . 24 5 Core Hits 79 | 4 19 26 10 . 19 1 Critical Kills 1 | . . . . . 1 . Critical Parts Destroyed 1 | . . 1 . . . . Critical Strikes 4 | . 1 2 . . 1 . Burn 1 | . 1 . . . . . Meltdown 1 | . . . . . 1 . Destroy 1 | . . 1 . . . . Smash 1 | . . 1 . . . . Melee Attacks 19 | . 1 4 14 . . . Impact 4 | . 1 3 . . . . Slashing . | . . . . . . . Piercing 15 | . . 1 14 . . . Sneak Attacks 6 | . . . 6 . . . Combat Hostiles . | . . . . . . . Follow-up Attacks . | . . . . . . . Damage Inflicted 4574 | 93 473 1162 873 . 1750 223 Guns 1968 | 93 473 1069 333 . . . Cannons 1224 | . . . . . 1001 223 Explosions 749 | . . . . . 749 . Melee 633 | . . 93 540 . . . Ramming . | . . . . . . . Kinetic 873 | 40 244 437 152 . . . Thermal 2880 | 53 229 632 76 . 1667 223 Explosive 83 | . . . . . 83 . Electromagnetic 105 | . . . 105 . . . Impact 93 | . . 93 . . . . Slashing . | . . . . . . . Piercing 540 | . . . 540 . . . Highest Corruption 9 | . . . . . 1 9 Average Corruption 2 | . . . . . 1 5 Corruption Purged . | . . . . . . . Corruption Blocked . | . . . . . . . Effects 3 | . . . . . . 3 Matter Fused 1 | . . . . . . 1 Weapon Failures 2 | . . . . . . 2 Overload Shots . | . . . . . . . Overflow Damage 327 | . . 22 115 . 190 . Projectiles 36 | . . . . . 36 . Explosions 154 | . . . . . 154 . Melee 137 | . . 22 115 . . . Knockbacks . | . . . . . . . Impact . | . . . . . . . Kinetic . | . . . . . . . Secondary . | . . . . . . . Self-Inflicted Damage . | . . . . . . . Shots . | . . . . . . . Rammed . | . . . . . . . Targets Rammed . | . . . . . . . Kicked . | . . . . . . . Crushed . | . . . . . . . Highest Temperature 370 | 40 96 10 48 . 370 96 Average Temperature 61 | 17 32 5 25 . 120 61 Received Heat Transfer 465 | . 93 246 90 . 36 . Effects 2 | . . . . . 2 . Shutdowns 1 | . . . . . 1 . Matter Decay 1 | . . . . . 1 . Siege Activations . | . . . . . . . Martial Activations . | . . . . . . . Shielding Activations . | . . . . . . . Robots Disrupted . | . . . . . . . Combat Hostiles . | . . . . . . . Robots Corrupted 1 | . . 1 . . . . Combat Hostiles 1 | . . 1 . . . . Parts Fried 2 | . . 1 1 . . . Impact Corruptions 1 | . . 1 . . . . Robots Melted 1 | . . . . . 1 . Combat Hostiles 1 | . . . . . 1 . Parts Melted 7 | . . 2 . . 5 . Heat Transferred 3454 | 125 606 836 75 . 1551 261 Parts Sabotaged . | . . . . . . . Parts Stolen . | . . . . . . . Parts Stripped . | . . . . . . . Power Chain Reactions . | . . . . . . . Alert | -11 -10 -10 -8 -8 -6 -6 ------- Run | Yrd Mat Sub Rec Scr Fac Was Maximum Alert Level 2 | . . . . . 2 . Low Security (%) 95 | 100 100 . 100 . 84 100 Level 1 3 | . . . . . 11 . Level 2 1 | . . . . . 3 . Level 3 . | . . . . . . . Level 4 . | . . . . . . . Level 5 . | . . . . . . . High Security . | . . . . . . . Max Security . | . . . . . . . Peak Influence 553 | 5 141 . 109 . 553 190 Initial 189 | . . . . . . 189 Average 63 | 1 57 . 31 . 110 178 Influence Increases 1621 | 10 394 50 387 . 779 1 Destroy 0b10 Robot/C 600 | . 240 40 140 . 180 . Destroy 0b10 Robot/NC 125 | 10 20 . 25 . 70 . Destroy Leader 120 | . 66 10 . . 44 . Successful Hack 103 | . 21 . 40 . 42 . Select Force Hacks 210 | . 30 . 180 . . . Disable Machine 345 | . 15 . . . 330 . Destroy Structure 88 | . 2 . 2 . 83 1 Lose Combat Pursuer 30 | . . . . . 30 . Influence Decreases 1491 | 10 352 92 387 . 238 412 Entered New Map 373 | . . 21 . . . 352 Time Decay 1038 | 10 352 71 357 . 238 10 Lost Part 80 | . . . 30 . . 50 Squads Dispatched 7 | . 2 . . . 5 . Investigation 4 | . 2 . . . 2 . Extermination 3 | . . . . . 3 . Reinforcement . | . . . . . . . Assault . | . . . . . . . Garrison . | . . . . . . . Intercept . | . . . . . . . Searches Triggered . | . . . . . . . Construction Impeded . | . . . . . . . Haulers Reinforced . | . . . . . . . Active Scanning Responses . | . . . . . . . Cargo Convoy Interrupts . | . . . . . . . Stealth | -11 -10 -10 -8 -8 -6 -6 --------- Run | Yrd Mat Sub Rec Scr Fac Was Distress Signals 3 | . 1 . . . 2 . Communications Jammed . | . . . . . . . Distress Signals . | . . . . . . . Times Spotted 58 | . 20 16 7 . 13 2 Peak Tracking Total 4 | . 3 2 4 . 3 2 Tactical Retreats 1 | . . . . . 1 . Traps | -11 -10 -10 -8 -8 -6 -6 ------- Run | Yrd Mat Sub Rec Scr Fac Was Traps Triggered 5 | . 1 1 . . 3 . Indirectly 1 | . . . . . 1 . Trap Hack Attempts . | . . . . . . . Triggered . | . . . . . . . Disarmed 6 | . 6 . . . . . Reprogrammed . | . . . . . . . Reused . | . . . . . . . Traps Extracted . | . . . . . . . Installed . | . . . . . . . Triggered . | . . . . . . . Machines | -11 -10 -10 -8 -8 -6 -6 ---------- Run | Yrd Mat Sub Rec Scr Fac Was Machines Disabled 23 | . 1 . . . 22 . Max in Single Turn 10 | . 1 . . . 10 . Machines Repaired . | . . . . . . . Machines Dismantled . | . . . . . . . Machines Sabotaged . | . . . . . . . Overloaded Fab Kills . | . . . . . . . Hacking | -11 -10 -10 -8 -8 -6 -6 --------- Run | Yrd Mat Sub Rec Scr Fac Was Machines Accessed 34 | . 10 2 12 1 9 . Terminals 16 | . 7 . 6 . 3 . Fabricators 1 | . . . . . 1 . Repair Stations 1 | . 1 . . . . . Recycling Units 10 | . 2 . 6 . 2 . Scanalyzers 2 | . . . . . 2 . Garrison Access 1 | . . . . . 1 . Total Hacks 90 | . 37 6 24 5 18 . Successful 51 | . 18 6 17 5 5 . Failed 39 | . 19 . 7 . 13 . Catastrophic 4 | . 1 . . . 3 . Database Lockouts . | . . . . . . . Manual 69 | . 33 . 23 . 13 . Terminals 55 | . 31 . 16 . 8 . Fabricators 2 | . . . . . 2 . Repair Stations 2 | . 2 . . . . . Recycling Units 15 | . 4 . 8 . 3 . Scanalyzers 4 | . . . . . 4 . Garrison Access 1 | . . . . . 1 . Terminal Hacks 20 | . 5 6 4 5 . . Record 10 | . . 5 . 5 . . Robot Schematic 1 | . . . 1 . . . Robot Analysis 4 | . 3 . 1 . . . Prototype ID Bank 1 | . 1 . . . . . Open Door 1 | . . 1 . . . . Terminal Index 1 | . . . 1 . . . Disarm Traps 1 | . 1 . . . . . Zone Layout 1 | . . . 1 . . . Fabricator Hacks . | . . . . . . . Repair Station Hacks 2 | . 2 . . . . . Scan Component 1 | . 1 . . . . . Repair 1 | . 1 . . . . . Recycling Unit Hacks . | . . . . . . . Scanalyzer 1 | . . . . . 1 . Retrieve Study 1 | . . . . . 1 . Garrison Access Hacks . | . . . . . . . Unauthorized Hacks 28 | . 11 . 13 . 4 . Terminals 20 | . 10 . 7 . 3 . Botnet 6 | . 3 . 2 . 1 . Operators 1 | . 1 . . . . . Skim 13 | . 6 . 5 . 2 . Fabricators 1 | . . . . . 1 . Report 1 | . . . . . 1 . Repair Stations . | . . . . . . . Recycling Units 7 | . 1 . 6 . . . Tunnel 7 | . 1 . 6 . . . Scanalyzers . | . . . . . . . Garrison Access . | . . . . . . . Data Cores Recovered . | . . . . . . . Used . | . . . . . . . Hacking Detections 22 | . 8 . 5 . 9 . Full Trace Events 2 | . 1 . . . 1 . Feedback Events . | . . . . . . . Feedback Blocked . | . . . . . . . Robot Schematics Acquired 1 | . . . 1 . . . Robots Built . | . . . . . . . Authchips . | . . . . . . . Time . | . . . . . . . Total Robot Build Rating . | . . . . . . . Part Schematics Acquired . | . . . . . . . Parts Built . | . . . . . . . Authchips . | . . . . . . . Time . | . . . . . . . Total Part Build Rating . | . . . . . . . Part Studies Acquired 1 | . . . . . 1 . Parts Repaired 1 | . 1 . . . . . Time 26 | . 26 . . . . . Parts Recycled . | . . . . . . . Recycled Matter . | . . . . . . . Retrieved Matter . | . . . . . . . Retrieved Components . | . . . . . . . Parts Scanalyzed . | . . . . . . . Part Schematics Acquired . | . . . . . . . Parts Damaged . | . . . . . . . Bothacking | -11 -10 -10 -8 -8 -6 -6 ------------ Run | Yrd Mat Sub Rec Scr Fac Was Used RIF Installer . | . . . . . . . Robots Hacked . | . . . . . . . Non-combat . | . . . . . . . Combat . | . . . . . . . Robot Hacks Applied . | . . . . . . . Relay Couplers Released 3 | . . . . . 3 . Programmers 3 | . . . . . 3 . Fabnet Peak Effective % . | . . . . . . . Robots Rewired . | . . . . . . . Allies Hacked . | . . . . . . . Hacks Repelled . | . . . . . . . Allies | -11 -10 -10 -8 -8 -6 -6 -------- Run | Yrd Mat Sub Rec Scr Fac Was Total Allies . | . . . . . . . Largest Group . | . . . . . . . Highest-Rated Group . | . . . . . . . Highest-Rated Ally . | . . . . . . . Initial UFD Resources 24 | . . . . . 24 24 Total Orders . | . . . . . . . Ally Attacks . | . . . . . . . Total Damage . | . . . . . . . Kills . | . . . . . . . Allies Corrupted . | . . . . . . . Allies Melted . | . . . . . . . Intel | -11 -10 -10 -8 -8 -6 -6 ------- Run | Yrd Mat Sub Rec Scr Fac Was Active Infowar (turns) 2223 | 21 1052 88 . . 1026 36 IFF 312 | . . . . . 312 . Terrain 2222 | 21 1052 88 . . 1025 36 Cloaking 776 | . . . . . 776 . Robot Analysis Total 4 | . 3 . 1 . . . Derelict Logs Recovered 4 | . . . . 4 . . Drone Launches . | . . . . . . . Drone Recoveries . | . . . . . . . Exploration | -11 -10 -10 -8 -8 -6 -6 ------------- Run | Yrd Mat Sub Rec Scr Fac Was Turns Passed 9550 | 64 1052 3455 1271 2645 1027 36 Spaces Moved 4834 | 32 575 1810 686 1179 538 14 Core . | . . . . . . . Treads 2254 | . . 1064 33 894 263 . Legs 472 | 32 440 . . . . . Wheels 2108 | . 135 746 653 285 275 14 Hover . | . . . . . . . Flight . | . . . . . . . Fastest Speed 80 | 120 120 80 130 130 130 100 Average Speed 165 | 120 124 155 135 222 156 124 Slowest Speed 360 | 120 140 260 360 255 249 145 Overloaded Moves . | . . . . . . . Propulsion Burnouts . | . . . . . . . Robots Hopped . | . . . . . . . Potential Cave-ins . | . . . . . . . Cave-ins Triggered . | . . . . . . . Exploration Rate (%) 54 | 3 86 68 99 85 19 22 Regions Visited 6 Branch Regions 3 Pre-discovered Areas 9 | . 2 1 6 . . . Known Exits Taken 1 | . . 1 . . . . Unknown Exits Taken 4 | 1 1 . 1 1 . . Scrap Searched 12 | . . 8 . 4 . . Spaces Dug 5 | . 1 2 . . 2 . Terrain Destroyed 98 | . 1 5 2 . 89 1 Melee 2 | . 1 1 . . . . Projectile 25 | . . 4 2 . 18 1 AOE 71 | . . . . . 71 . Terrain Rammed . | . . . . . . . Walls Destroyed . | . . . . . . . Machines Disabled . | . . . . . . . Actions | -11 -10 -10 -8 -8 -6 -6 --------- Run | Yrd Mat Sub Rec Scr Fac Was Total 6081 | 41 845 2323 984 1200 664 24 Wait 883 | . 216 365 255 . 44 3 Move 4829 | 31 574 1809 685 1178 538 14 Hop . | . . . . . . . Pick Up 49 | . 8 16 4 8 12 1 Fast Attach 25 | 1 1 9 3 3 8 . Attach 14 | . 1 2 2 1 8 . Detach 8 | . . 2 . . 6 . Swap 22 | . 6 6 4 . 6 . Drop 43 | . 5 18 2 10 7 1 Fire 163 | 9 33 70 15 . 31 5 Melee 19 | . 1 4 14 . . . Ram . | . . . . . . . Kick . | . . . . . . . Crush . | . . . . . . . Escape Stasis 4 | . . . . . 4 . Rewire 10 | . . 10 . . . . Trap . | . . . . . . . Miscellaneous 12 | . . 12 . . . . Route ------- -11/Scrapyard -10/Materials (discovered 6 exits: *Mat x3 / *Min x2 / *Sub) -10/Subcaves (discovered 3 exits: *Mat x2 / *Rec) -8/Recycling (discovered 2 exits: *Fac / *Scr) -8/Scraptown (discovered 2 exits: *Fac x2) -6/Factory (discovered 2 exits: *Fac x2) -6/Waste History --------- Turn | Location | Event 15 | -11/Scrapyard | Discovered new exit (range 3) 65 | -11/Scrapyard | Entered Materials 207 | -10/Materials | Discovered new exit (range 13) 301 | -10/Materials | Build established: Mutant 378 | -10/Materials | Discovered new exit (range 13) 542 | -10/Materials | Discovered new exit (range 9) 562 | -10/Materials | Discovered new exit (range 9) 705 | -10/Materials | Learned Storage trap positions 746 | -10/Materials | Discovered new exit (range 15) 749 | -10/Materials | Learned location of Subcaves (-10) 781 | -10/Materials | Learned location of 2 exits from Subcaves 805 | -10/Materials | Identified exit to Materials 805 | -10/Materials | Identified exit to Mines 839 | -10/Materials | Repaired Aluminum Leg 883 | -10/Materials | Learned location of 2 exits from Subcaves 1117 | -10/Materials | Entered Subcaves 1118 | -10/Subcaves | Approached by a straggling Scientist 1118 | -10/Subcaves | Identified exit to Materials 1119 | -10/Subcaves | Identified exit to Recycling 1167 | -10/Subcaves | Visited Clippyterm 1171 | -10/Subcaves | Learned Factory fabricator intel 1171 | -10/Subcaves | Learned Factory stockpile data 1522 | -10/Subcaves | Learned location of Zion (-6) 1522 | -10/Subcaves | Met a Zionite searching for "candidates" 1660 | -10/Subcaves | Ambushed by angry Subdweller bent on revenge 2213 | -10/Subcaves | Build established: Subdweller-Mutant 2368 | -10/Subcaves | A swath of the cavern ceiling suddenly collapsed 2651 | -10/Subcaves | Disturbed a concealed Subdweller 3487 | -10/Subcaves | Disturbed a concealed Subdweller 3772 | -10/Subcaves | Curiously followed by a Cobbler waking with a query about "LVR3C" 4485 | -10/Subcaves | Build established: Mutant 4572 | -10/Subcaves | Entered Recycling 4672 | -8/Recycling | Core integrity fell below 50% 4896 | -8/Recycling | Discovered new exit (range 12) 4957 | -8/Recycling | Build established: Scavenger-Mutant 5234 | -8/Recycling | Scanned before Scraplab entrance 5507 | -8/Recycling | Learned 4 Factory zone layouts 5621 | -8/Recycling | Learned Factory terminal intel 5710 | -8/Recycling | Learned location of 2 exits from Factory 5737 | -8/Recycling | Learned Factory trap positions 5774 | -8/Recycling | Learned location of 2 exits from Lower Caves 5830 | -8/Recycling | Entered Scraplab 5841 | -8/Recycling | Discovered new exit (range 2) 5843 | -8/Recycling | Entered Scraptown 5953 | -8/Scraptown | Heard Great Nut preacher, LISTEN AND RECITE! 5990 | -8/Scraptown | Visited UFD Registry 5990 | -8/Scraptown | Registered with UFD as "Roughcircuit" 6007 | -8/Scraptown | Visited Supply Room 6046 | -8/Scraptown | Visited CPS Storage 6091 | -8/Scraptown | Scanned Subdweller tech in exchange for log data 6094 | -8/Scraptown | Learned location of 1 exit from Upper Caves 6095 | -8/Scraptown | Learned Research emergency access door positions 6097 | -8/Scraptown | Learned Research terminal intel 6098 | -8/Scraptown | Learned 8 Factory zone layouts 6113 | -8/Scraptown | Discovered new exit (range 11) 6143 | -8/Scraptown | Guru changed UFD alias to "Ioncell" 6314 | -8/Scraptown | Build established: Mutant 6996 | -8/Scraptown | Visited Assassins FH 7029 | -8/Scraptown | Visited Red Mages 7126 | -8/Scraptown | Visited The Evicted 7161 | -8/Scraptown | Visited Symbiants 7314 | -8/Scraptown | Visited Curators Association 7354 | -8/Scraptown | Visited Observation Area 7656 | -8/Scraptown | Visited Supply Room 7722 | -8/Scraptown | Visited Scrapoid Pod Storage 7735 | -8/Scraptown | Found Scrapoid Pod 7837 | -8/Scraptown | Delivered Scrap Shield to a Scientist 7962 | -8/Scraptown | Visited Scrap Suit Storage 8025 | -8/Scraptown | Visited DA-N13 Charitable Foundation 8047 | -8/Scraptown | Found DCF Scrap (28 items) 8129 | -8/Scraptown | Visited Abandonware Association 8170 | -8/Scraptown | Visited LU-1G1's Boring Crew 8335 | -8/Scraptown | Met Optimus 8335 | -8/Scraptown | Accepted into 0bPrime 8483 | -8/Scraptown | Discovered new exit (range 3) 8488 | -8/Scraptown | Entered Factory 8488 | -6/Factory | Evolved 8 slots: Propulsion x2, Utility x6 8489 | -6/Factory | Identified exit to Factory 8491 | -6/Factory | Loaded intel: 133 trap records 8493 | -6/Factory | Loaded intel: 26 terminal locations 8494 | -6/Factory | Loaded intel: 6 fabricator locations 8836 | -6/Factory | Spotted B-75 Beast 9515 | -6/Factory | Sucked down chute 9515 | -6/Factory | Entered Waste 9528 | -6/Waste | Spotted C-40 Crusher 9530 | -6/Waste | EMP discharged 9531 | -6/Waste | Spotted C-40 Crusher 9541 | -6/Waste | Crushed by Compactor (0 parts destroyed, 1 dropped) 9544 | -6/Waste | Crushed by Compactor (1 part destroyed, 1 dropped) 9547 | -6/Waste | Crushed by Compactor (1 part destroyed, 2 dropped) 9550 | -6/Waste | Crushed by Compactor (1 part destroyed, 2 dropped) 9551 | -6/Waste | Self-destructed Last Messages --------------- 09541_ Hvy. Plasma Cannon crushed. 09544_ Com. Wheel crushed. 09544_ Phase Cannon crushed. 09544_ Critical hit (Destroy). 09544_ Imp. Heavy Armor Plating destroyed. 09547_ Arm. Treads crushed. 09547_ Huge Storage Unit crushed. 09547_ Fission Core crushed. 09547_ Com. Wheel destroyed. 09547_ Chainsword crushed. 09547_ Plasma Cannon+ crushed. 09549_ Extracted 17 energy. 09550_ Extracted 7 energy. 09550_ Imp. System Shield crushed. 09550_ Multitool crushed. 09550_ Imp. Cryofiber Web crushed. 09550_ Imp. Heat Sink crushed. 09550_ Imp. Particle Charger crushed. 09550_ Cooling System crushed. 09550_ Com. Wheel crushed. Map ----- +----------------------------------------------------+ | ?????????????????????????????????????????????????? | | ?????????????????????????????????????????????????? | | ?????????????????????????????????????????????????? | | ?????????????????????????????????????????????????? | | ?????????????????????????????????????????????????? | | ?????????????????????????????????????????????????? | | ?????????????????????????????????????????????????? | | ?????????????????????????????????????????????????? | | ?????????????????????????????????????????????????? | | ?????????????????????????????????????????????????? | | ?????????????????????????????????????????????????? | | ???????????????#???#?????????????????????????????? | | ?????????????????????????????????????????????????? | | ???????????????????????#?????????????????????????? | | ?????????????????????#??????#????????????????????? | | ?????????????????????????????????????????????????? | | ????????#????#????#???????????#??#???????????????? | | ??????????#??????????????????????????????????????? | | ??????????????????????#######????????????????????? | | ???????#???????????????# #????????????????????? | | ?????????############??# #????????????????????? | | ?????????# #??# #????????????????????? | | ?????????# #??# #?????#??????????????? | | ?????????# ####* ######## #????????? | | ??????#??# !]!]= #????????? | | ?????????# ]]]!*]@! #????????? | | ?????????# *]CC CC #????????? | | ?????????# ]CC CC #????????? | | ?????????# * = #### ##;##### ?????????? | | ?????????# #??#[ #??#???#?????????????? | | ?????????# #??# #????????????????????? | | ?????????############??# #????#???????????????? | | ???????????????????????# #????????????????????? | | ???????#???????#?????#? #????????????????????? | | ????????????????????#?? #????????????????????? | | ??????????#???????????? #????????????????????? | | ??????????????????????? #????????????????????? | | ????????????????#??????# #????????????????????? | | ???????????????????????? #????????????????????? | | ???????????????????????? #????????????????????? | | ???????????????????????? ?????????????????????? | | ?????????????????????????????????????????????????? | | ?????????????????????????????????????????????????? | | ?????????????????????????????????????????????????? | | ?????????????????????????????????????????????????? | | ?????????????????????????????????????????????????? | | ?????????????????????????????????????????????????? | | ?????????????????????????????????????????????????? | | ?????????????????????????????????????????????????? | | ?????????????????????????????????????????????????? | +----------------------------------------------------+ Best States ------------- Heat Dissipation 59 Energy Generation 20 Energy Capacity 310 Matter Stores 300 Matter Capacity 300 Sight Range 16 Terrain Scan Range 16 Terrain Scan Density 10 Cloak Strength 2 Power Amplification 20 Armor Coverage 800 Evasion (%) 55 Recoil Reduction 4 Particle Charging 20 Offensive Hacking 10 Item Schematics ----------------- None Robot Schematics ------------------ M-28 Smith | -8/Recycling | Hacked Fabricated ------------ Nothing Repaired ---------- Aluminum Leg | 35% | -10/Materials Studied --------- Plasma Cannon | -6/Factory | Hacked Alien Tech Used ----------------- None Achievements -------------- None Challenges ------------ None Game ------ Seed SegregatorRecyclingClaw Manual? 0 Play Time 00:43:22 Cumulative 377.5 hours Start 2026.03.30 @ 20:32:45 End 2026.03.30 @ 21:19:10 Sessions 1 Manual Loads 0 Difficulty Rogue Special Mode None Game No. 308 Rogue 272 Adventurer 36 Explorer 0 Win Type - Total 5 Types 2/0/0/1/0/0/0/2/0/0 Lore% 71 Gallery% 66 Achievement% 54 Wizard Run 0 Options --------- Layout 1 ASCII 0 Keyboard 0 Movement Numpad Keybinds 0 Fullscreen 1 Font 48/Smallcaps Map View 50x35 Zoom Use 0% Tactical HUD 1 Map Filters NONE Filters NONE Steam 1 RUN: 535ebe13-786d-458a-907b-b462e4165a69